[Event "Early-Titled-Tuesday-Blitz-October-03-2023"]
[Site "Chess.com"]
[Date "2023.10.03"]
[Round "4"]
[White "ShiroglanTalibov"]
[Black "BashirovKemal"]
[Result "1-0"]
[WhiteElo "2896"]
[BlackElo "2663"]
[TimeControl "180+1"]
[EndTime "8:39:08 PDT"]
[Termination "ShiroglanTalibov won by resignation"]

1. d4 {[%clk 0:03:00.9]} 1... Nf6 {[%clk 0:02:59.8]} 2. c4 {[%clk 0:03:00]} 2...
e6 {[%clk 0:02:59.9]} 3. Nf3 {[%clk 0:02:58.2]} 3... b6 {[%clk 0:02:57.5]} 4.
Nc3 {[%clk 0:02:51.9]} 4... Bb4 {[%clk 0:02:56.7]} 5. Bg5 {[%clk 0:02:49.2]}
5... Bb7 {[%clk 0:02:53.4]} 6. e3 {[%clk 0:02:48.9]} 6... O-O {[%clk 0:02:53]}
7. Rc1 {[%clk 0:02:42.8]} 7... c5 {[%clk 0:02:53.1]} 8. a3 {[%clk 0:02:37.4]}
8... Bxc3+ {[%clk 0:02:47.5]} 9. Rxc3 {[%clk 0:02:34.9]} 9... cxd4 {[%clk
0:02:43.9]} 10. Qxd4 {[%clk 0:02:27.8]} 10... Nc6 {[%clk 0:02:40.2]} 11. Qh4
{[%clk 0:02:27.2]} 11... h6 {[%clk 0:02:38.6]} 12. Bxf6 {[%clk 0:02:21.4]} 12...
Qxf6 {[%clk 0:02:39.5]} 13. Qxf6 {[%clk 0:02:21.3]} 13... gxf6 {[%clk
0:02:40.4]} 14. Be2 {[%clk 0:02:21.6]} 14... Rac8 {[%clk 0:02:38]} 15. O-O
{[%clk 0:02:20.8]} 15... Ne7 {[%clk 0:02:37.6]} 16. Rfc1 {[%clk 0:02:16.9]}
16... Rc7 {[%clk 0:02:33.5]} 17. Nd4 {[%clk 0:02:15.7]} 17... a6 {[%clk
0:02:32.3]} 18. f3 {[%clk 0:01:58.1]} 18... Rfc8 {[%clk 0:02:31.4]} 19. Kf2
{[%clk 0:01:57.7]} 19... e5 {[%clk 0:02:19.6]} 20. Nb3 {[%clk 0:01:45.7]} 20...
d5 {[%clk 0:01:55.7]} 21. R3c2 {[%clk 0:01:43.9]} 21... Kf8 {[%clk 0:01:22.6]}
22. Bd3 {[%clk 0:01:42.2]} 22... e4 {[%clk 0:01:09.3]} 23. Be2 {[%clk
0:01:35.4]} 23... Nf5 {[%clk 0:00:46.4]} 24. fxe4 {[%clk 0:01:28.1]} 24... Ne7
{[%clk 0:00:26]} 25. exd5 {[%clk 0:01:21.1]} 25... Bxd5 {[%clk 0:00:21.4]} 26.
Nd4 {[%clk 0:01:20.9]} 26... Be6 {[%clk 0:00:18.1]} 27. b4 {[%clk 0:01:18.1]}
27... Nc6 {[%clk 0:00:07.7]} 28. Nxc6 {[%clk 0:01:00.9]} 28... Rxc6 {[%clk
0:00:07.7]} 29. c5 {[%clk 0:00:59.4]} 29... bxc5 {[%clk 0:00:07.1]} 30. Rxc5
{[%clk 0:00:59.6]} 30... Rxc5 {[%clk 0:00:05.2]} 31. Rxc5 {[%clk 0:01:00.3]}
31... Rxc5 {[%clk 0:00:05.5]} 32. bxc5 {[%clk 0:01:01.2]} 32... a5 {[%clk
0:00:06.1]} 33. e4 {[%clk 0:00:57]} 33... Ke7 {[%clk 0:00:06]} 34. Bb5 {[%clk
0:00:56.1]} 34... Kd8 {[%clk 0:00:05.9]} 35. Ke3 {[%clk 0:00:55.9]} 35... Kc7
{[%clk 0:00:04.7]} 36. Kd4 {[%clk 0:00:56]} 36... Bb3 {[%clk 0:00:04.9]} 37. Bc4
{[%clk 0:00:54]} 37... Bd1 {[%clk 0:00:03.3]} 38. Bxf7 {[%clk 0:00:53.5]} 38...
Be2 {[%clk 0:00:04]} 39. Bd5 {[%clk 0:00:52]} 39... Bf1 {[%clk 0:00:03.7]} 40.
e5 {[%clk 0:00:52]} 1-0

[Event "Early-Titled-Tuesday-Blitz-October-03-2023"]
[Site "Chess.com"]
[Date "2023.10.03"]
[Round "4"]
[White "hellokostya"]
[Black "JoakimVonAnd"]
[Result "1-0"]
[WhiteElo "2552"]
[BlackElo "2737"]
[TimeControl "180+1"]
[EndTime "8:39:09 PDT"]
[Termination "hellokostya won by resignation"]

1. Nf3 {[%clk 0:03:00.9]} 1... Nf6 {[%clk 0:02:57.7]} 2. c4 {[%clk 0:02:59.6]}
2... e6 {[%clk 0:02:57.7]} 3. g3 {[%clk 0:02:58.2]} 3... d5 {[%clk 0:02:57.9]}
4. b3 {[%clk 0:02:58.8]} 4... d4 {[%clk 0:02:51.4]} 5. Bb2 {[%clk 0:02:58]} 5...
c5 {[%clk 0:02:51.4]} 6. e3 {[%clk 0:02:54.2]} 6... Nc6 {[%clk 0:02:51.5]} 7.
exd4 {[%clk 0:02:52.5]} 7... cxd4 {[%clk 0:02:52.4]} 8. d3 {[%clk 0:02:51.5]}
8... Bd6 {[%clk 0:02:51]} 9. Bg2 {[%clk 0:02:51.3]} 9... O-O {[%clk 0:02:49.9]}
10. O-O {[%clk 0:02:51.2]} 10... e5 {[%clk 0:02:49.6]} 11. Ba3 {[%clk
0:02:51.3]} 11... Bf5 {[%clk 0:02:48]} 12. Bxd6 {[%clk 0:02:49]} 12... Qxd6
{[%clk 0:02:48.9]} 13. Re1 {[%clk 0:02:46.9]} 13... Rfe8 {[%clk 0:02:48.1]} 14.
a3 {[%clk 0:02:45.8]} 14... a5 {[%clk 0:02:47.7]} 15. Nh4 {[%clk 0:02:40.5]}
15... Bg4 {[%clk 0:02:46.9]} 16. Qc2 {[%clk 0:02:37.9]} 16... Nd7 {[%clk
0:02:32]} 17. h3 {[%clk 0:02:34.5]} 17... Be6 {[%clk 0:02:29.9]} 18. Nd2 {[%clk
0:02:31.9]} 18... Nc5 {[%clk 0:02:29.6]} 19. Ne4 {[%clk 0:02:25.4]} 19... Nxe4
{[%clk 0:02:24.2]} 20. Rxe4 {[%clk 0:02:15.9]} 20... f5 {[%clk 0:02:17]} 21. Re2
{[%clk 0:02:15.8]} 21... e4 {[%clk 0:02:12.1]} 22. Qd2 {[%clk 0:02:01.3]} 22...
e3 {[%clk 0:01:57]} 23. fxe3 {[%clk 0:01:56.9]} 23... Qxg3 {[%clk 0:01:57]} 24.
Qe1 {[%clk 0:01:57.4]} 24... Qd6 {[%clk 0:01:48.8]} 25. e4 {[%clk 0:01:50.6]}
25... fxe4 {[%clk 0:01:41]} 26. Rxe4 {[%clk 0:01:40.8]} 26... Bf7 {[%clk
0:01:32.4]} 27. Qf2 {[%clk 0:01:33.9]} 27... Rf8 {[%clk 0:01:21.6]} 28. Nf5
{[%clk 0:01:25.7]} 28... Qf6 {[%clk 0:01:18.6]} 29. Rf4 {[%clk 0:01:23]} 29...
Be6 {[%clk 0:01:04.7]} 30. Rf1 {[%clk 0:00:52.7]} 30... Bxf5 {[%clk 0:01:04.5]}
31. Bd5+ {[%clk 0:00:51.3]} 31... Kh8 {[%clk 0:00:57]} 32. Rxf5 {[%clk
0:00:51.5]} 32... Qg6+ {[%clk 0:00:50.7]} 33. Kh1 {[%clk 0:00:47]} 33... Rxf5
{[%clk 0:00:35.8]} 34. Qxf5 {[%clk 0:00:47.9]} 34... Ne7 {[%clk 0:00:16.3]} 35.
Qf8+ {[%clk 0:00:39.8]} 35... Ng8 {[%clk 0:00:14.9]} 36. Qxa8 {[%clk 0:00:35.8]}
1-0

[Event "Early-Titled-Tuesday-Blitz-October-03-2023"]
[Site "Chess.com"]
[Date "2023.10.03"]
[Round "4"]
[White "BigAl"]
[Black "Abund"]
[Result "0-1"]
[WhiteElo "2563"]
[BlackElo "2780"]
[TimeControl "180+1"]
[EndTime "8:39:12 PDT"]
[Termination "Abund won on time"]

1. Nf3 {[%clk 0:03:00.9]} 1... d5 {[%clk 0:03:00.1]} 2. g3 {[%clk 0:03:01.6]}
2... c5 {[%clk 0:03:00.5]} 3. Bg2 {[%clk 0:03:02.5]} 3... Nc6 {[%clk 0:03:01.1]}
4. O-O {[%clk 0:03:03.4]} 4... e5 {[%clk 0:03:01.6]} 5. d3 {[%clk 0:03:04.3]}
5... Be7 {[%clk 0:03:02]} 6. c4 {[%clk 0:03:02]} 6... Nf6 {[%clk 0:03:01.9]} 7.
Nc3 {[%clk 0:02:53.7]} 7... d4 {[%clk 0:02:56.3]} 8. Na4 {[%clk 0:02:53.8]} 8...
O-O {[%clk 0:02:53.6]} 9. e3 {[%clk 0:02:54.2]} 9... h6 {[%clk 0:02:49.4]} 10.
exd4 {[%clk 0:02:53.5]} 10... exd4 {[%clk 0:02:48.7]} 11. Re1 {[%clk 0:02:40.2]}
11... Bd6 {[%clk 0:02:48.3]} 12. a3 {[%clk 0:02:38.1]} 12... Bf5 {[%clk
0:02:36.3]} 13. Rb1 {[%clk 0:01:51.5]} 13... a5 {[%clk 0:02:31.9]} 14. Nh4
{[%clk 0:01:43]} 14... Bh7 {[%clk 0:02:31]} 15. Bxc6 {[%clk 0:01:34.8]} 15...
bxc6 {[%clk 0:02:31.1]} 16. Qf3 {[%clk 0:01:35]} 16... Nd7 {[%clk 0:02:17.5]}
17. Nf5 {[%clk 0:00:48.5]} 17... Qf6 {[%clk 0:02:08.8]} 18. g4 {[%clk
0:00:37.9]} 18... h5 {[%clk 0:01:52.6]} 19. h3 {[%clk 0:00:33.1]} 19... hxg4
{[%clk 0:01:46.9]} 20. hxg4 {[%clk 0:00:34]} 20... Ne5 {[%clk 0:01:46.7]} 21.
Nh6+ {[%clk 0:00:26.7]} 21... Kh8 {[%clk 0:01:46.9]} 22. Qxf6 {[%clk 0:00:26.6]}
22... gxf6 {[%clk 0:01:47.8]} 23. Kg2 {[%clk 0:00:20.5]} 23... Bxd3 {[%clk
0:01:35]} 24. Ra1 {[%clk 0:00:20.2]} 24... Rab8 {[%clk 0:01:24.8]} 25. f4 {[%clk
0:00:14.8]} 25... Ng6 {[%clk 0:01:17.6]} 26. Rh1 {[%clk 0:00:10.4]} 26... Be4+
{[%clk 0:01:12]} 27. Kg1 {[%clk 0:00:09.2]} 27... Bxh1 {[%clk 0:01:11.4]} 28.
Kxh1 {[%clk 0:00:10.1]} 28... Ne7 {[%clk 0:01:06.6]} 29. Bd2 {[%clk 0:00:09.4]}
29... Kg7 {[%clk 0:01:06.8]} 30. g5 {[%clk 0:00:09.7]} 30... Kg6 {[%clk
0:00:52.5]} 31. Kg2 {[%clk 0:00:09.5]} 31... Nf5 {[%clk 0:00:49.8]} 32. Ng4
{[%clk 0:00:07.4]} 32... fxg5 {[%clk 0:00:49.5]} 33. fxg5 {[%clk 0:00:08.3]}
33... Rh8 {[%clk 0:00:50.1]} 34. Rf1 {[%clk 0:00:08.4]} 34... Rh4 {[%clk
0:00:45.6]} 35. Kf3 {[%clk 0:00:07.5]} 35... Rb3+ {[%clk 0:00:44.6]} 36. Ke4
{[%clk 0:00:07.5]} 36... Rxg4+ {[%clk 0:00:44.6]} 0-1

[Event "Early-Titled-Tuesday-Blitz-October-03-2023"]
[Site "Chess.com"]
[Date "2023.10.03"]
[Round "4"]
[White "JiiHart"]
[Black "UK_23"]
[Result "0-1"]
[WhiteElo "2186"]
[BlackElo "2448"]
[TimeControl "180+1"]
[EndTime "8:39:12 PDT"]
[Termination "UK_23 won on time"]

1. e4 {[%clk 0:03:00.9]} 1... e5 {[%clk 0:02:58.6]} 2. Nf3 {[%clk 0:03:00.3]}
2... Nc6 {[%clk 0:02:59]} 3. Bc4 {[%clk 0:02:59.3]} 3... Nf6 {[%clk 0:02:59]} 4.
d3 {[%clk 0:02:56.8]} 4... Be7 {[%clk 0:02:58.9]} 5. c3 {[%clk 0:02:56.6]} 5...
O-O {[%clk 0:02:59.4]} 6. Bg5 {[%clk 0:02:26.7]} 6... h6 {[%clk 0:02:46.6]} 7.
Bh4 {[%clk 0:02:24.3]} 7... d6 {[%clk 0:02:46.1]} 8. h3 {[%clk 0:02:22.7]} 8...
Nd7 {[%clk 0:02:46.6]} 9. Bxe7 {[%clk 0:02:13.3]} 9... Qxe7 {[%clk 0:02:46.9]}
10. a4 {[%clk 0:02:03.6]} 10... a6 {[%clk 0:02:46]} 11. Nbd2 {[%clk 0:01:56.5]}
11... Na5 {[%clk 0:02:45.9]} 12. Ba2 {[%clk 0:01:54.3]} 12... c5 {[%clk
0:02:46.6]} 13. Nf1 {[%clk 0:01:51.4]} 13... Kh8 {[%clk 0:02:39.3]} 14. Ne3
{[%clk 0:01:50.4]} 14... b5 {[%clk 0:02:39]} 15. Nf5 {[%clk 0:01:31]} 15... Qf6
{[%clk 0:02:38.8]} 16. Nh2 {[%clk 0:01:29.7]} 16... Nb6 {[%clk 0:02:32.4]} 17.
Ng4 {[%clk 0:01:29.2]} 17... Qg6 {[%clk 0:02:32.7]} 18. Qf3 {[%clk 0:01:16.2]}
18... bxa4 {[%clk 0:02:25.2]} 19. O-O {[%clk 0:01:03.4]} 19... Ra7 {[%clk
0:02:14.3]} 20. Nge3 {[%clk 0:00:55.5]} 20... Be6 {[%clk 0:02:05.1]} 21. h4
{[%clk 0:00:32.8]} 21... Nb3 {[%clk 0:01:47.2]} 22. h5 {[%clk 0:00:28.8]} 22...
Qg5 {[%clk 0:01:41.2]} 23. Rad1 {[%clk 0:00:28.1]} 23... d5 {[%clk 0:01:28.5]}
24. exd5 {[%clk 0:00:21]} 24... Nxd5 {[%clk 0:01:27.7]} 25. Nxd5 {[%clk
0:00:19]} 25... Bxf5 {[%clk 0:01:23]} 26. Ne3 {[%clk 0:00:13.3]} 26... Be6
{[%clk 0:01:21.5]} 27. Bb1 {[%clk 0:00:13.4]} 27... f5 {[%clk 0:01:20.2]} 28. d4
{[%clk 0:00:10.8]} 28... cxd4 {[%clk 0:01:18.1]} 29. cxd4 {[%clk 0:00:10.7]}
29... e4 {[%clk 0:01:18.8]} 30. Qe2 {[%clk 0:00:09.5]} 30... f4 {[%clk
0:01:14.5]} 31. d5 {[%clk 0:00:09.5]} 31... f3 {[%clk 0:01:14.6]} 32. Qc4 {[%clk
0:00:08.8]} 32... Bf5 {[%clk 0:01:06.6]} 33. g3 {[%clk 0:00:03.1]} 33... Re8
{[%clk 0:00:47]} 34. Rfe1 {[%clk 0:00:03]} 34... Qxh5 {[%clk 0:00:44.9]} 35. Qf1
{[%clk 0:00:02.5]} 35... Rd7 {[%clk 0:00:42]} 36. Nxf5 {[%clk 0:00:01.8]} 36...
Qxf5 {[%clk 0:00:41.7]} 0-1

[Event "Early-Titled-Tuesday-Blitz-October-03-2023"]
[Site "Chess.com"]
[Date "2023.10.03"]
[Round "4"]
[White "Djager97"]
[Black "NodariousBIG"]
[Result "1-0"]
[WhiteElo "2595"]
[BlackElo "2819"]
[TimeControl "180+1"]
[EndTime "8:39:14 PDT"]
[Termination "Djager97 won by checkmate"]

1. e4 {[%clk 0:03:00.9]} 1... c5 {[%clk 0:02:58.7]} 2. Nf3 {[%clk 0:03:01.3]}
2... d6 {[%clk 0:02:59]} 3. d4 {[%clk 0:03:01.3]} 3... cxd4 {[%clk 0:02:59.9]}
4. Nxd4 {[%clk 0:02:58.9]} 4... Nf6 {[%clk 0:03:00.3]} 5. Nc3 {[%clk 0:02:59.5]}
5... g6 {[%clk 0:03:01]} 6. Be3 {[%clk 0:02:59.4]} 6... Bg7 {[%clk 0:03:01.7]}
7. f3 {[%clk 0:03:00]} 7... O-O {[%clk 0:03:02.3]} 8. Qd2 {[%clk 0:03:00.7]}
8... Nc6 {[%clk 0:03:02.8]} 9. O-O-O {[%clk 0:03:01.3]} 9... d5 {[%clk
0:03:03.5]} 10. Nxc6 {[%clk 0:03:01.1]} 10... bxc6 {[%clk 0:03:03.5]} 11. Bc4
{[%clk 0:03:01.8]} 11... e6 {[%clk 0:03:00.6]} 12. Bb3 {[%clk 0:03:01.5]} 12...
Bb7 {[%clk 0:02:58.1]} 13. Na4 {[%clk 0:03:01.2]} 13... Qc7 {[%clk 0:02:57.8]}
14. Nc5 {[%clk 0:02:59.6]} 14... a5 {[%clk 0:02:57.5]} 15. a4 {[%clk 0:02:53.8]}
15... Rfd8 {[%clk 0:02:51.4]} 16. Qf2 {[%clk 0:02:05.6]} 16... dxe4 {[%clk
0:02:48.4]} 17. fxe4 {[%clk 0:02:03.1]} 17... Ng4 {[%clk 0:02:48.4]} 18. Qe2
{[%clk 0:01:57.7]} 18... Nxe3 {[%clk 0:02:32.1]} 19. Qxe3 {[%clk 0:01:58.3]}
19... Qe5 {[%clk 0:02:03.4]} 20. c3 {[%clk 0:01:58.1]} 20... Bh6 {[%clk
0:01:51.8]} 21. Qxh6 {[%clk 0:01:56.2]} 21... Qxc5 {[%clk 0:01:52.4]} 22. Kb1
{[%clk 0:01:39.4]} 22... Ba6 {[%clk 0:01:51.5]} 23. h4 {[%clk 0:00:32.1]} 23...
Rdb8 {[%clk 0:01:46.5]} 24. h5 {[%clk 0:00:26.2]} 24... g5 {[%clk 0:01:34.3]}
25. Bxe6 {[%clk 0:00:17.8]} 25... Qxc3 {[%clk 0:01:29]} 26. Bxf7+ {[%clk
0:00:17]} 26... Kh8 {[%clk 0:01:28.3]} 27. Rd8+ {[%clk 0:00:09.6]} 27... Rxd8
{[%clk 0:01:24.5]} 28. bxc3 {[%clk 0:00:10.5]} 28... Rab8+ {[%clk 0:01:25]} 29.
Ka2 {[%clk 0:00:09.2]} 29... Rd2+ {[%clk 0:01:23]} 30. Ka3 {[%clk 0:00:09.8]}
30... Rf2 {[%clk 0:01:23.3]} 31. Bb3 {[%clk 0:00:06.2]} 31... c5 {[%clk
0:01:20.3]} 32. Qxg5 {[%clk 0:00:05.1]} 32... Re8 {[%clk 0:01:18.5]} 33. Qxc5
{[%clk 0:00:04.4]} 33... Rd2 {[%clk 0:01:15.6]} 34. Qxa5 {[%clk 0:00:04.1]}
34... Bc8 {[%clk 0:01:14.3]} 35. Qb5 {[%clk 0:00:03.8]} 35... Bd7 {[%clk
0:01:14.1]} 36. Qc5 {[%clk 0:00:02.5]} 36... h6 {[%clk 0:01:12.9]} 37. Rf1
{[%clk 0:00:01.6]} 37... Rb8 {[%clk 0:01:07]} 38. Rf8+ {[%clk 0:00:02.1]} 38...
Kg7 {[%clk 0:01:04.2]} 39. Rxb8 {[%clk 0:00:02.1]} 39... Kf6 {[%clk 0:01:05.1]}
40. Qf8+ {[%clk 0:00:02.2]} 40... Ke5 {[%clk 0:01:04.9]} 41. Qxh6 {[%clk
0:00:02.5]} 41... Be6 {[%clk 0:01:04.9]} 42. Qxd2 {[%clk 0:00:02.4]} 42... Kxe4
{[%clk 0:01:05.2]} 43. Qd4+ {[%clk 0:00:02.9]} 43... Kf5 {[%clk 0:01:06.1]} 44.
Rf8+ {[%clk 0:00:02.9]} 44... Kg5 {[%clk 0:01:07]} 45. Qf4+ {[%clk 0:00:02.7]}
45... Kxh5 {[%clk 0:01:07.3]} 46. Rh8+ {[%clk 0:00:03]} 46... Kg6 {[%clk
0:01:08.2]} 47. Rh6+ {[%clk 0:00:03.4]} 47... Kg7 {[%clk 0:01:09.1]} 48. Qf6+
{[%clk 0:00:04]} 48... Kg8 {[%clk 0:01:10]} 49. Rh8# {[%clk 0:00:04.9]} 1-0

[Event "Early-Titled-Tuesday-Blitz-October-03-2023"]
[Site "Chess.com"]
[Date "2023.10.03"]
[Round "4"]
[White "artin10862"]
[Black "Firouzja2003"]
[Result "0-1"]
[WhiteElo "2839"]
[BlackElo "3115"]
[TimeControl "180+1"]
[EndTime "8:39:15 PDT"]
[Termination "Firouzja2003 won on time"]

1. d4 {[%clk 0:03:00.1]} 1... Nf6 {[%clk 0:02:58.6]} 2. Nf3 {[%clk 0:03:00.1]}
2... g6 {[%clk 0:02:57.3]} 3. Bf4 {[%clk 0:02:59.5]} 3... Bg7 {[%clk 0:02:57.5]}
4. e3 {[%clk 0:03:00.1]} 4... O-O {[%clk 0:02:57.8]} 5. h3 {[%clk 0:02:58.5]}
5... c5 {[%clk 0:02:57.8]} 6. c3 {[%clk 0:02:58]} 6... cxd4 {[%clk 0:02:57.6]}
7. exd4 {[%clk 0:02:57.3]} 7... d6 {[%clk 0:02:56.3]} 8. Be2 {[%clk 0:02:50.9]}
8... Nc6 {[%clk 0:02:47.4]} 9. Nbd2 {[%clk 0:02:50.5]} 9... Nd5 {[%clk
0:02:36.4]} 10. Bh2 {[%clk 0:02:48.9]} 10... e5 {[%clk 0:02:36.7]} 11. dxe5
{[%clk 0:02:42.9]} 11... dxe5 {[%clk 0:02:36.7]} 12. O-O {[%clk 0:02:41.8]}
12... Qe7 {[%clk 0:02:28.9]} 13. Re1 {[%clk 0:02:30]} 13... Rd8 {[%clk
0:02:25.4]} 14. Bb5 {[%clk 0:02:20.2]} 14... f6 {[%clk 0:02:25.2]} 15. Qa4
{[%clk 0:02:02.4]} 15... Nb6 {[%clk 0:02:17.1]} 16. Qc2 {[%clk 0:02:01.8]} 16...
Bf5 {[%clk 0:02:14.7]} 17. Ne4 {[%clk 0:02:01.6]} 17... Rd5 {[%clk 0:01:58.5]}
18. Bf1 {[%clk 0:01:49.7]} 18... Rad8 {[%clk 0:01:53.8]} 19. c4 {[%clk
0:00:53.2]} 19... Nd4 {[%clk 0:01:35.6]} 20. Qc3 {[%clk 0:00:45.9]} 20... Na4
{[%clk 0:01:25.4]} 21. Qe3 {[%clk 0:00:38.8]} 21... Nxf3+ {[%clk 0:01:17]} 22.
Qxf3 {[%clk 0:00:36.2]} 22... Rd4 {[%clk 0:01:16.9]} 23. b3 {[%clk 0:00:28.6]}
23... Nb2 {[%clk 0:01:07.6]} 24. Nc3 {[%clk 0:00:22.8]} 24... Nd3 {[%clk
0:01:04.1]} 25. Re3 {[%clk 0:00:20.8]} 25... Nb4 {[%clk 0:00:56.2]} 26. Nb5
{[%clk 0:00:12.1]} 26... R4d7 {[%clk 0:00:53.4]} 27. Rc3 {[%clk 0:00:05]} 27...
a6 {[%clk 0:00:51.6]} 28. Na3 {[%clk 0:00:05.5]} 28... Bh6 {[%clk 0:00:50.6]}
29. c5 {[%clk 0:00:02.9]} 29... Bd2 {[%clk 0:00:42.9]} 30. Rc4 {[%clk
0:00:03.3]} 30... Be6 {[%clk 0:00:43.5]} 31. Rd1 {[%clk 0:00:02]} 31... Nc6
{[%clk 0:00:36.5]} 32. Rc2 {[%clk 0:00:02]} 32... Nd4 {[%clk 0:00:36.8]} 33.
Rcxd2 {[%clk 0:00:01.7]} 33... Nxf3+ {[%clk 0:00:36.9]} 0-1

[Event "Early-Titled-Tuesday-Blitz-October-03-2023"]
[Site "Chess.com"]
[Date "2023.10.03"]
[Round "4"]
[White "MokshAD1603"]
[Black "Barmen_EV"]
[Result "1-0"]
[WhiteElo "2623"]
[BlackElo "2444"]
[TimeControl "180+1"]
[EndTime "8:39:22 PDT"]
[Termination "MokshAD1603 won by checkmate"]

1. e4 {[%clk 0:02:51.1]} 1... c5 {[%clk 0:02:59.6]} 2. Nf3 {[%clk 0:02:48.5]}
2... Nc6 {[%clk 0:03:00.2]} 3. Bb5 {[%clk 0:02:34.3]} 3... e6 {[%clk 0:03:00.3]}
4. O-O {[%clk 0:02:33.5]} 4... Be7 {[%clk 0:03:00.2]} 5. Re1 {[%clk 0:02:34.1]}
5... Nf6 {[%clk 0:02:57.8]} 6. e5 {[%clk 0:02:20.1]} 6... Nd5 {[%clk 0:02:57.8]}
7. c4 {[%clk 0:02:19.7]} 7... Nb6 {[%clk 0:02:56.9]} 8. Nc3 {[%clk 0:02:17.7]}
8... O-O {[%clk 0:02:55.9]} 9. d3 {[%clk 0:02:16.9]} 9... a6 {[%clk 0:02:56]}
10. Bxc6 {[%clk 0:02:16.8]} 10... dxc6 {[%clk 0:02:47.7]} 11. Ne4 {[%clk
0:02:15.7]} 11... Rb8 {[%clk 0:02:20.7]} 12. h4 {[%clk 0:01:48.8]} 12... Na8
{[%clk 0:02:13]} 13. Bg5 {[%clk 0:01:44.6]} 13... b6 {[%clk 0:02:07.3]} 14. Qd2
{[%clk 0:01:40.6]} 14... Nc7 {[%clk 0:02:03.4]} 15. h5 {[%clk 0:01:35.8]} 15...
Bxg5 {[%clk 0:01:57.1]} 16. Nfxg5 {[%clk 0:01:35.2]} 16... h6 {[%clk 0:01:54.3]}
17. Nf3 {[%clk 0:01:33.3]} 17... Qe7 {[%clk 0:01:48.9]} 18. Qf4 {[%clk
0:01:31.1]} 18... Rd8 {[%clk 0:01:44.6]} 19. Re3 {[%clk 0:01:28.7]} 19... b5
{[%clk 0:01:36.1]} 20. b3 {[%clk 0:01:25.4]} 20... bxc4 {[%clk 0:01:36.1]} 21.
bxc4 {[%clk 0:01:26.1]} 21... Rb2 {[%clk 0:01:23.3]} 22. Nh2 {[%clk 0:01:23.3]}
22... Ne8 {[%clk 0:01:19.6]} 23. Rg3 {[%clk 0:01:21]} 23... Kh8 {[%clk
0:01:15.1]} 24. Ng4 {[%clk 0:01:20.5]} 24... f5 {[%clk 0:00:59.5]} 25. exf6
{[%clk 0:01:19.8]} 25... Nxf6 {[%clk 0:00:59.3]} 26. Ngxf6 {[%clk 0:01:18.6]}
26... e5 {[%clk 0:00:51.4]} 27. Qe3 {[%clk 0:01:10.9]} 27... Bf5 {[%clk
0:00:47.6]} 28. Ng4 {[%clk 0:01:02.1]} 28... Rf8 {[%clk 0:00:23]} 29. Qxc5
{[%clk 0:00:50.3]} 29... Qe8 {[%clk 0:00:15.7]} 30. Nd6 {[%clk 0:00:47.3]} 30...
Qe7 {[%clk 0:00:13.2]} 31. Qxe5 {[%clk 0:00:41.8]} 31... Qxe5 {[%clk 0:00:09.8]}
32. Nxe5 {[%clk 0:00:42.7]} 32... Be6 {[%clk 0:00:10.1]} 33. Ng6+ {[%clk
0:00:42.7]} 33... Kg8 {[%clk 0:00:09.7]} 34. Nxf8 {[%clk 0:00:43.6]} 34... Kxf8
{[%clk 0:00:10.6]} 35. Re1 {[%clk 0:00:42.8]} 35... Ke7 {[%clk 0:00:11.5]} 36.
Nf5+ {[%clk 0:00:42.1]} 36... Kf6 {[%clk 0:00:12.1]} 37. Nxg7 {[%clk 0:00:40.8]}
37... Rxa2 {[%clk 0:00:12.6]} 38. Rxe6+ {[%clk 0:00:38.6]} 38... Kf7 {[%clk
0:00:13.5]} 39. Rxc6 {[%clk 0:00:37.1]} 39... Ra1+ {[%clk 0:00:12.9]} 40. Kh2
{[%clk 0:00:37.2]} 40... a5 {[%clk 0:00:13.8]} 41. Nf5 {[%clk 0:00:37.5]} 41...
a4 {[%clk 0:00:14.7]} 42. Rg7+ {[%clk 0:00:37.9]} 42... Kf8 {[%clk 0:00:15.1]}
43. Rc8# {[%clk 0:00:38.8]} 1-0

[Event "Early-Titled-Tuesday-Blitz-October-03-2023"]
[Site "Chess.com"]
[Date "2023.10.03"]
[Round "4"]
[White "falzehope0"]
[Black "the_chess_child"]
[Result "0-1"]
[WhiteElo "2378"]
[BlackElo "2860"]
[TimeControl "180+1"]
[EndTime "8:39:25 PDT"]
[Termination "the_chess_child won by checkmate"]

1. d4 {[%clk 0:02:58.8]} 1... Nf6 {[%clk 0:02:59]} 2. e3 {[%clk 0:02:50.7]} 2...
g6 {[%clk 0:02:59.1]} 3. Bd3 {[%clk 0:02:49.6]} 3... Bg7 {[%clk 0:02:59.3]} 4.
f4 {[%clk 0:02:48.9]} 4... O-O {[%clk 0:02:59.8]} 5. Nf3 {[%clk 0:02:48.1]} 5...
d6 {[%clk 0:03:00.2]} 6. O-O {[%clk 0:02:45.9]} 6... Nbd7 {[%clk 0:03:00]} 7. f5
{[%clk 0:02:45.1]} 7... c5 {[%clk 0:02:55.2]} 8. c3 {[%clk 0:02:44.3]} 8... e5
{[%clk 0:02:42.7]} 9. fxe6 {[%clk 0:02:41.8]} 9... fxe6 {[%clk 0:02:43.6]} 10.
Ng5 {[%clk 0:02:41.2]} 10... Qe7 {[%clk 0:02:42.1]} 11. Kh1 {[%clk 0:02:37.8]}
11... b6 {[%clk 0:02:02.6]} 12. Nd2 {[%clk 0:02:34.7]} 12... Bb7 {[%clk
0:02:02.4]} 13. Qe2 {[%clk 0:02:30.9]} 13... e5 {[%clk 0:01:58]} 14. dxc5 {[%clk
0:02:15.2]} 14... Nxc5 {[%clk 0:01:56]} 15. Bb5 {[%clk 0:02:01.4]} 15... d5
{[%clk 0:01:42.9]} 16. e4 {[%clk 0:01:58]} 16... a6 {[%clk 0:01:41.9]} 17. Bd3
{[%clk 0:01:55]} 17... Nxd3 {[%clk 0:01:39.5]} 18. Qxd3 {[%clk 0:01:53.9]} 18...
dxe4 {[%clk 0:01:39.9]} 19. Qh3 {[%clk 0:01:14]} 19... e3 {[%clk 0:01:06.1]} 20.
Ndf3 {[%clk 0:00:52.8]} 20... Bc8 {[%clk 0:00:51.4]} 21. Qh4 {[%clk 0:00:48.4]}
21... e4 {[%clk 0:00:48.4]} 22. Nd4 {[%clk 0:00:44.9]} 22... h6 {[%clk
0:00:48.4]} 23. Nh3 {[%clk 0:00:43.2]} 23... Ng4 {[%clk 0:00:37.4]} 24. Rxf8+
{[%clk 0:00:20.1]} 24... Qxf8 {[%clk 0:00:38.3]} 25. Qe1 {[%clk 0:00:16.7]}
25... Qd6 {[%clk 0:00:30.1]} 26. g3 {[%clk 0:00:13.9]} 26... Bxd4 {[%clk
0:00:20.4]} 27. cxd4 {[%clk 0:00:13.3]} 27... Qxd4 {[%clk 0:00:21.1]} 28. Ng1
{[%clk 0:00:11.3]} 28... Be6 {[%clk 0:00:20.1]} 29. Ne2 {[%clk 0:00:11.3]} 29...
Qf6 {[%clk 0:00:20]} 30. Kg1 {[%clk 0:00:10.3]} 30... Rf8 {[%clk 0:00:18]} 31.
Nf4 {[%clk 0:00:10.6]} 31... g5 {[%clk 0:00:17.8]} 32. Nxe6 {[%clk 0:00:08.8]}
32... Qf2+ {[%clk 0:00:18]} 33. Qxf2 {[%clk 0:00:08.5]} 33... exf2+ {[%clk
0:00:18.9]} 34. Kg2 {[%clk 0:00:07.8]} 34... f1=Q# {[%clk 0:00:18.8]} 0-1